[Event "6th Heraklion Fischer 2019"]
[Site "Heraklion"]
[Date "2019.05.02"]
[Round "4.5"]
[White "Oglaza, Oskar"]
[Black "Krishnater Kushager"]
[Result "1/2-1/2"]
[ECO "C45"]
[WhiteElo "2338"]
[BlackElo "2329"]
[Annotator "NA"]
[PlyCount "30"]
[EventDate "2019.04.29"]
[EventType "tourn"]
[EventCountry "GRE"]
[SourceTitle "playchess.com"]
[Source "ChessBase"]
[SourceQuality "1"]
[TimeControl "40/5400+30:1800+30"]

1. e4 {[%emt 0:00:00]} e5 {[%emt 0:00:00]} 2. Nf3 {[%emt 0:00:00]} Nc6 {[%emt 0:00:00]} 3. d4 {[%emt 0:00:00]} exd4 {[%emt 0:00:00]} 4. Nxd4 {[%emt 0:00:00]} Qf6 {[%emt 0:00:00]} 5. Nb5 {[%emt 0:00:02]} Bc5 {[%emt 0:00:03]} 6. Qe2 {[%emt 0:00:07]} Bb6 {[%emt 0:00:17]} 7. N1c3 {[%emt 0:24:45]} Nge7 {[%emt 0:00:13]} 8. Be3 {[%emt 0:04:46]} Ba5 {[%emt 0:00:12]} 9. O-O-O {[%emt 0:01:18]} a6 {[%emt 0:00:57]} 10. Nd5 {[%emt 0:02:45]} Nxd5 {[%emt 0:00:05]} 11. exd5 {[%emt 0:00:06]} axb5 {[%emt 0:00:06]} 12. Bg5+ {[%emt 0:12:37]} Qe5 {[%emt 0:00:40]} 13. dxc6 {[%emt 0:00:06]} Qxe2 {[%emt 0:00:12]} 14. cxd7+ {[%emt 0:00:09]} Bxd7 {[%emt 0:00:05]} 15. Bxe2 {[%emt 0:00:05]} c6 {[%emt 0:00:11]} 1/2-1/2

[Event "6th Heraklion Fischer 2019"]
[Site "Heraklion"]
[Date "2019.05.03"]
[Round "5.2"]
[White "Moksh Amit Doshi"]
[Black "Oglaza, Oskar"]
[Result "1-0"]
[ECO "D76"]
[WhiteElo "2256"]
[BlackElo "2338"]
[Annotator "NA"]
[PlyCount "119"]
[EventDate "2019.04.29"]
[EventType "tourn"]
[EventCountry "GRE"]
[SourceTitle "playchess.com"]
[Source "ChessBase"]
[SourceQuality "1"]
[TimeControl "40/5400+30:1800+30"]

1. d4 {[%emt 0:00:00]} Nf6 {[%emt 0:00:00]} 2. c4 {[%emt 0:00:00]} g6 {[%emt 0:00:00]} 3. g3 {[%emt 0:00:00]} d5 {[%emt 0:00:00]} 4. cxd5 {[%emt 0:00:07]} Nxd5 {[%emt 0:00:00]} 5. Bg2 {[%emt 0:00:09]} Nb6 {[%emt 0:01:01]} 6. Nc3 {[%emt 0:00:07]} Bg7 {[%emt 0:00:09]} 7. Nf3 {[%emt 0:00:06]} Nc6 {[%emt 0:00:41]} 8. e3 {[%emt 0:00:06]} O-O {[%emt 0:00:12]} 9. O-O {[%emt 0:00:07]} Re8 {[%emt 0:00:08]} 10. h3 {[%emt 0:00:16]} e5 {[%emt 0:07:55]} 11. d5 {[%emt 0:00:12]} Nb4 {[%emt 0:00:14]} 12. e4 {[%emt 0:00:24]} c6 {[%emt 0:04:39]} 13. Qb3 {[%emt 0:08:06]} Na6 {[%emt 0:03:10]} 14. Be3 {[%emt 0:00:46]} cxd5 {[%emt 0:27:52]} 15. exd5 {[%emt 0:03:05]} Bd7 {[%emt 0:03:21]} 16. Ng5 {[%emt 0:06:55]} Rf8 {[%emt 0:07:21]} 17. Ne6 {[%emt 0:04:38]} fxe6 {[%emt 0:17:37]} 18. dxe6 {[%emt 0:00:11]} Bxe6 {[%emt 0:00:37]} 19. Qxe6+ {[%emt 0:00:12]} Kh8 {[%emt 0:00:04]} 20. Bxb7 {[%emt 0:07:32]} Nc7 {[%emt 0:00:05]} 21. Qc6 {[%emt 0:01:51]} Rb8 {[%emt 0:01:49]} 22. Bxb6 {[%emt 0:05:41]} axb6 {[%emt 0:00:21]} 23. Rad1 {[%emt 0:07:17]} Qe8 {[%emt 0:00:45]} 24. Qxc7 {[%emt 0:02:13]} Rf7 {[%emt 0:01:16]} 25. Qc6 {[%emt 0:01:59]} Rfxb7 {[%emt 0:00:07]} 26. Qxe8+ {[%emt 0:00:06]} Rxe8 {[%emt 0:00:04]} 27. Ne4 {[%emt 0:00:07]} Ra8 {[%emt 0:00:16]} 28. Rd5 {[%emt 0:04:07]} Bf8 {[%emt 0:00:59]} 29. a3 {[%emt 0:01:58]} b5 {[%emt 0:01:26]} 30. Rfd1 {[%emt 0:01:56]} b4 {[%emt 0:02:23]} 31. a4 {[%emt 0:01:57]} b3 {[%emt 0:00:41]} 32. Rb5 {[%emt 0:02:27]} Rc7 {[%emt 0:05:27]} 33. Nc3 {[%emt 0:00:43]} Bc5 {[%emt 0:01:07]} 34. Rxb3 {[%emt 0:00:08]} Rf8 {[%emt 0:00:44]} 35. Rd2 {[%emt 0:01:16]} Ra7 {[%emt 0:01:46]} 36. Ne4 {[%emt 0:02:23]} Bd4 {[%emt 0:00:04]} 37. Rb4 {[%emt 0:00:23]} Rfa8 {[%emt 0:01:51]} 38. b3 {[%emt 0:00:08]} Rc7 {[%emt 0:00:15]} 39. Kg2 {[%emt 0:00:25]} h6 {[%emt 0:03:34]} 40. h4 {[%emt 0:00:00]} Kg7 {[%emt 0:00:00]} 41. Rb5 {[%emt 0:01:07]} Kf8 {[%emt 0:04:27]} 42. Nd6 {[%emt 0:01:01]} Rc1 {[%emt 0:00:57]} 43. Nc4 {[%emt 0:00:26]} Re1 {[%emt 0:00:04]} 44. Rb7 {[%emt 0:02:17]} g5 {[%emt 0:00:27]} 45. hxg5 {[%emt 0:01:05]} hxg5 {[%emt 0:00:04]} 46. Nd6 {[%emt 0:00:43]} g4 {[%emt 0:00:48]} 47. Rc2 {[%emt 0:00:21]} e4 {[%emt 0:01:01]} 48. Rcc7 {[%emt 0:00:44]} e3 {[%emt 0:00:08]} 49. Rf7+ {[%emt 0:00:05]} Kg8 {[%emt 0:00:04]} 50. Nf5 {[%emt 0:00:11]} Ra6 {[%emt 0:01:45]} 51. Rfd7 {[%emt 0:00:39]} Ra8 {[%emt 0:00:11]} 52. Nh6+ {[%emt 0:01:48]} Kf8 {[%emt 0:00:06]} 53. Rxd4 {[%emt 0:00:09]} e2 {[%emt 0:00:14]} 54. Re4 {[%emt 0:00:11]} Ra7 {[%emt 0:00:21]} 55. Rb8+ {[%emt 0:01:02]} Kg7 {[%emt 0:00:06]} 56. Nxg4 {[%emt 0:00:16]} Rd7 {[%emt 0:00:52]} 57. Rbe8 {[%emt 0:00:18]} Rd2 {[%emt 0:00:21]} 58. Nh2 {[%emt 0:00:57]} Rdd1 {[%emt 0:01:04]} 59. Nf3 {[%emt 0:00:29]} Rh1 {[%emt 0:00:13]} 60. Rxe2 {[%emt 0:00:08]} 1-0

[Event "6th Heraklion Fischer 2019"]
[Site "Heraklion"]
[Date "2019.05.03"]
[Round "5.3"]
[White "Mitsis, Georgios"]
[Black "Tate, Alan"]
[Result "1-0"]
[ECO "D11"]
[WhiteElo "2362"]
[BlackElo "2308"]
[Annotator "NA"]
[PlyCount "75"]
[EventDate "2019.04.29"]
[EventType "tourn"]
[EventCountry "GRE"]
[SourceTitle "playchess.com"]
[Source "ChessBase"]
[SourceQuality "1"]
[TimeControl "40/5400+30:1800+30"]

1. d4 {[%emt 0:00:00]} d5 {[%emt 0:00:03]} 2. Nf3 {[%emt 0:00:00]} Nf6 {[%emt 0:00:14]} 3. c4 {[%emt 0:00:00]} c6 {[%emt 0:01:10]} 4. e3 {[%emt 0:00:08]} Bg4 {[%emt 0:00:55]} 5. Qb3 {[%emt 0:00:26]} Qb6 {[%emt 0:00:26]} 6. Nc3 {[%emt 0:00:46]} e6 {[%emt 0:00:39]} 7. Nh4 {[%emt 0:01:26]} Bh5 {[%emt 0:00:53]} 8. h3 {[%emt 0:00:22]} Nbd7 {[%emt 0:01:03]} 9. g4 {[%emt 0:01:58]} Bg6 {[%emt 0:00:03]} 10. Nxg6 {[%emt 0:00:27]} hxg6 {[%emt 0:00:03]} 11. g5 {[%emt 0:07:15]} Ng8 {[%emt 0:04:31]} 12. Qc2 {[%emt 0:17:31]} Ne7 {[%emt 0:02:43]} 13. Bd2 {[%emt 0:25:38]} Nf5 {[%emt 0:06:06]} 14. cxd5 {[%emt 0:00:36]} exd5 {[%emt 0:03:42]} 15. O-O-O {[%emt 0:00:37]} Be7 {[%emt 0:10:08]} 16. Rg1 {[%emt 0:01:54]} Nf8 {[%emt 0:08:20]} 17. Bd3 {[%emt 0:03:03]} Nd6 {[%emt 0:18:33]} 18. Rg3 {[%emt 0:01:03]} Ne6 {[%emt 0:01:53]} 19. f4 {[%emt 0:00:14]} Qc7 {[%emt 0:02:06]} 20. Rf3 {[%emt 0:04:36]} O-O-O {[%emt 0:08:09]} 21. Be1 {[%emt 0:00:17]} Kb8 {[%emt 0:01:59]} 22. h4 {[%emt 0:00:20]} Qd7 {[%emt 0:06:38]} 23. Bg3 {[%emt 0:03:04]} Nc7 {[%emt 0:00:02]} 24. f5 {[%emt 0:07:47]} gxf5 {[%emt 0:03:15]} 25. Rxf5 {[%emt 0:02:32]} Nxf5 {[%emt 0:04:25]} 26. Bxf5 {[%emt 0:00:07]} Qe8 {[%emt 0:00:03]} 27. Qh2 {[%emt 0:01:27]} Rd7 {[%emt 0:01:36]} 28. Kb1 {[%emt 0:02:46]} Bd8 {[%emt 0:04:27]} 29. e4 {[%emt 0:01:39]} dxe4 {[%emt 0:03:22]} 30. d5 {[%emt 0:07:12]} e3 {[%emt 0:00:34]} 31. Bxd7 {[%emt 0:00:33]} Qxd7 {[%emt 0:00:02]} 32. dxc6 {[%emt 0:00:13]} Qxc6 {[%emt 0:01:12]} 33. Nd5 {[%emt 0:00:16]} Re8 {[%emt 0:03:11]} 34. Nxe3 {[%emt 0:00:27]} Ka8 {[%emt 0:03:08]} 35. Qc2 {[%emt 0:04:01]} Qxc2+ {[%emt 0:00:44]} 36. Kxc2 {[%emt 0:00:13]} Ne6 {[%emt 0:00:29]} 37. Nc4 {[%emt 0:02:02]} Be7 {[%emt 0:01:10]} 38. Rd7 {[%emt 0:00:55]} 1-0

[Event "6th Heraklion Fischer 2019"]
[Site "Heraklion"]
[Date "2019.05.04"]
[Round "6.1"]
[White "Georgiev, Kiril"]
[Black "Leenhouts, Koen"]
[Result "1/2-1/2"]
[ECO "D85"]
[WhiteElo "2588"]
[BlackElo "2446"]
[Annotator "ChessBase"]
[PlyCount "51"]
[EventDate "2019.04.29"]
[EventType "tourn"]
[EventCountry "GRE"]
[SourceTitle "playchess.com"]
[Source "ChessBase"]
[SourceQuality "1"]
[TimeControl "40/5400+30:1800+30"]

1. Nf3 {[%emt 0:00:00]} Nf6 {[%emt 0:00:22]} 2. d4 {[%emt 0:00:00]} g6 {[%emt 0:00:11]} 3. c4 {[%emt 0:02:13]} Bg7 {[%emt 0:00:08]} 4. Nc3 {[%emt 0:02:33]} d5 {[%emt 0:00:07]} 5. cxd5 {[%emt 0:00:16]} Nxd5 {[%emt 0:00:09]} 6. e4 {[%emt 0:00:46]} Nxc3 {[%emt 0:00:08]} 7. bxc3 {[%emt 0:00:05]} c5 {[%emt 0:00:46]} 8. Be3 {[%emt 0:00:08]} Qa5 {[%emt 0:01:16]} 9. Qd2 {[%emt 0:00:21]} O-O {[%emt 0:02:19]} 10. Rc1 {[%emt 0:00:36]} Rd8 {[%emt 0:08:13]} 11. d5 {[%emt 0:02:12]} e6 {[%emt 0:00:28]} 12. Bg5 {[%emt 0:02:02]} f6 {[%emt 0:00:05]} 13. Bf4 {[%emt 0:00:23]} Qa4 {[%emt 0:08:14]} 14. c4 {[%emt 0:03:04]} Nc6 {[%emt 0:01:13]} 15. Be2 {[%emt 0:07:25]} Nb4 {[%emt 0:01:13]} 16. O-O {[%emt 0:00:11]} Qxa2 {[%emt 0:03:42]} 17. Qe3 {[%emt 0:00:19]} e5 {[%emt 0:19:24]} 18. Bg3 {[%emt 0:04:43]} Qa5 {[%emt 0:03:10]} 19. Nd2 {[%emt 0:00:29]} Qc7 {[%emt 0:01:03]} 20. f4 {[%emt 0:10:47]} Bh6 {[%emt 0:03:53]} 21. Rf2 {[%emt 0:03:14]} a5 {[%emt 0:03:07]} 22. Rcf1 {[%emt 0:13:01]} a4 {[%emt 0:00:50]} 23. Qa3 {[%emt 0:05:27]} exf4 {[%emt 0:12:17]} 24. Bxf4 {[%emt 0:02:39]} Bxf4 {[%emt 0:00:06]} 25. Rxf4 {[%emt 0:00:08]} Qe5 {[%emt 0:02:20]} 26. Kh1 {[%emt 0:05:13]} 1/2-1/2

[Event "6th Heraklion Fischer 2019"]
[Site "Heraklion"]
[Date "2019.05.04"]
[Round "6.3"]
[White "Tate, Alan"]
[Black "Kapnisis, Spyridon"]
[Result "0-1"]
[ECO "B63"]
[WhiteElo "2308"]
[BlackElo "2459"]
[Annotator "RC"]
[PlyCount "84"]
[EventDate "2019.04.29"]
[EventType "tourn"]
[EventCountry "GRE"]
[SourceTitle "playchess.com"]
[Source "ChessBase"]
[SourceQuality "1"]
[TimeControl "40/5400+30:1800+30"]

1. e4 {[%emt 0:01:17]} c5 {[%emt 0:00:00]} 2. Nf3 {[%emt 0:00:07]} Nc6 {[%emt 0:00:05]} 3. d4 {[%emt 0:00:05]} cxd4 {[%emt 0:00:04]} 4. Nxd4 {[%emt 0:00:04]} Nf6 {[%emt 0:00:59]} 5. Nc3 {[%emt 0:00:36]} d6 {[%emt 0:00:05]} 6. Bg5 {[%emt 0:00:39]} e6 {[%emt 0:00:32]} 7. Qd2 {[%emt 0:00:45]} a6 {[%emt 0:00:16]} 8. O-O-O {[%emt 0:00:31]} Be7 {[%emt 0:00:13]} 9. f3 {[%emt 0:02:26]} O-O {[%emt 0:05:33]} 10. h4 {[%emt 0:00:55]} Qc7 {[%emt 0:17:20]} 11. g4 {[%emt 0:02:31]} Nxd4 {[%emt 0:04:06]} 12. Qxd4 {[%emt 0:00:06]} b5 {[%emt 0:00:07]} 13. Kb1 {[%emt 0:14:53]} Rb8 {[%emt 0:22:19]} 14. Qd2 {[%emt 0:31:28]} Rd8 {[%emt 0:21:50]} 15. h5 {[%emt 0:11:17]} b4 {[%emt 0:09:02]} 16. Ne2 {[%emt 0:00:34]} a5 {[%emt 0:03:58]} 17. Nd4 {[%emt 0:06:20]} a4 {[%emt 0:02:18]} 18. Bh4 {[%emt 0:09:25]} a3 {[%emt 0:04:37]} 19. b3 {[%emt 0:05:58]} e5 {[%emt 0:00:09]} 20. g5 {[%emt 0:07:08]} Nxh5 {[%emt 0:03:09]} 21. Nf5 {[%emt 0:00:48]} g6 {[%emt 0:01:20]} 22. Be1 {[%emt 0:01:08]} Be6 {[%emt 0:00:50]} 23. Bh3 {[%emt 0:01:57]} Nf4 {[%emt 0:01:37]} 24. Nh6+ {[%emt 0:00:29]} Kf8 {[%emt 0:00:32]} 25. Bxe6 {[%emt 0:00:15]} Nxe6 {[%emt 0:00:48]} 26. Nxf7 {[%emt 0:00:25]} Kxf7 {[%emt 0:00:12]} 27. Rxh7+ {[%emt 0:00:23]} Ke8 {[%emt 0:00:48]} 28. Qd5 {[%emt 0:00:47]} Nxg5 {[%emt 0:00:32]} 29. Rg7 {[%emt 0:00:40]} Rbc8 {[%emt 0:00:28]} 30. Rc1 {[%emt 0:00:30]} Qc5 {[%emt 0:00:21]} 31. Qg8+ {[%emt 0:00:31]} Kd7 {[%emt 0:00:10]} 32. Rxe7+ {[%emt 0:00:11]} Kxe7 {[%emt 0:00:11]} 33. Qg7+ {[%emt 0:00:23]} Ke8 {[%emt 0:01:14]} 34. Qxg6+ {[%emt 0:00:16]} Kd7 {[%emt 0:00:33]} 35. Qxg5 {[%emt 0:01:02]} Qd4 {[%emt 0:00:25]} 36. Qg7+ {[%emt 0:00:38]} Kc6 {[%emt 0:00:06]} 37. c3 {[%emt 0:00:05]} Qd3+ {[%emt 0:00:39]} 38. Ka1 {[%emt 0:00:54]} Qe3 {[%emt 0:00:16]} 39. Kb1 {[%emt 0:00:23]} Qd3+ {[%emt 0:00:04]} 40. Rc2 {[%emt 0:00:00]} Qd1+ {[%emt 0:00:00]} 41. Rc1 {[%emt 0:00:37]} Qe2 {[%emt 0:02:45]} 42. cxb4+ {[%emt 0:01:53]} Kb6 {[%emt 0:05:28]} 0-1

[Event "6th Heraklion Fischer 2019"]
[Site "Heraklion"]
[Date "2019.05.04"]
[Round "6.5"]
[White "Krishnater, Kushager"]
[Black "Moksh, Amit Doshi"]
[Result "1-0"]
[ECO "B90"]
[WhiteElo "2329"]
[BlackElo "2256"]
[Annotator "NA"]
[PlyCount "61"]
[EventDate "2019.04.29"]
[EventType "tourn"]
[EventCountry "GRE"]
[SourceTitle "playchess.com"]
[Source "ChessBase"]
[SourceQuality "1"]
[TimeControl "40/5400+30:1800+30"]

1. e4 {[%emt 0:00:00]} c5 {[%emt 0:00:17]} 2. Nf3 {[%emt 0:00:00]} d6 {[%emt 0:00:13]} 3. d4 {[%emt 0:00:00]} cxd4 {[%emt 0:00:07]} 4. Nxd4 {[%emt 0:00:00]} Nf6 {[%emt 0:00:08]} 5. Nc3 {[%emt 0:00:00]} a6 {[%emt 0:00:05]} 6. h3 {[%emt 0:00:00]} e5 {[%emt 0:00:40]} 7. Nb3 {[%emt 0:00:02]} Be6 {[%emt 0:00:03]} 8. f4 {[%emt 0:00:13]} g6 {[%emt 0:00:59]} 9. Be2 {[%emt 0:00:08]} Nbd7 {[%emt 0:00:09]} 10. g4 {[%emt 0:00:08]} exf4 {[%emt 0:02:58]} 11. g5 {[%emt 0:00:13]} Nh5 {[%emt 0:01:00]} 12. Bxh5 {[%emt 0:00:11]} Qxg5 {[%emt 0:00:49]} 13. Bg4 {[%emt 0:00:09]} Ne5 {[%emt 0:11:56]} 14. Bxe6 {[%emt 0:05:52]} fxe6 {[%emt 0:16:20]} 15. Qe2 {[%emt 0:01:01]} Qf6 {[%emt 0:05:49]} 16. Bd2 {[%emt 0:04:36]} Bg7 {[%emt 0:06:01]} 17. O-O-O {[%emt 0:05:32]} O-O {[%emt 0:03:19]} 18. Rdf1 {[%emt 0:04:26]} f3 {[%emt 0:04:28]} 19. Qh2 {[%emt 0:06:38]} b5 {[%emt 0:04:08]} 20. Nd1 {[%emt 0:05:59]} a5 {[%emt 0:10:41]} 21. Bc3 {[%emt 0:05:07]} b4 {[%emt 0:12:12]} 22. Bxe5 {[%emt 0:00:10]} Qg5+ {[%emt 0:00:06]} 23. Kb1 {[%emt 0:00:06]} Bxe5 {[%emt 0:00:11]} 24. h4 {[%emt 0:00:07]} Qf6 {[%emt 0:07:55]} 25. Qh3 {[%emt 0:00:14]} Rac8 {[%emt 0:01:49]} 26. Nd2 {[%emt 0:00:35]} Qf4 {[%emt 0:00:13]} 27. Qxe6+ {[%emt 0:01:02]} Kh8 {[%emt 0:00:06]} 28. Qd5 {[%emt 0:00:13]} Rc5 {[%emt 0:01:37]} 29. Qd3 {[%emt 0:00:06]} Rfc8 {[%emt 0:00:05]} 30. Rxf3 {[%emt 0:00:29]} Qg4 {[%emt 0:00:07]} 31. Ne3 {[%emt 0:00:19]} 1-0

[Event "6th Heraklion Fischer 2019"]
[Site "Heraklion"]
[Date "2019.05.05"]
[Round "7.1"]
[White "Moksh Amit Doshi"]
[Black "Georgiev, Kiril"]
[Result "0-1"]
[ECO "E32"]
[WhiteElo "2256"]
[BlackElo "2588"]
[Annotator "RC"]
[PlyCount "54"]
[EventDate "2019.04.29"]
[EventType "tourn"]
[EventCountry "GRE"]
[SourceTitle "playchess.com"]
[Source "ChessBase"]
[SourceQuality "1"]
[TimeControl "40/5400+30:1800+30"]

1. d4 {[%emt 0:00:00]} Nf6 {[%emt 0:00:00]} 2. c4 {[%emt 0:00:00]} e6 {[%emt 0:02:00]} 3. Nc3 {[%emt 0:00:00]} Bb4 {[%emt 0:00:28]} 4. Qc2 {[%emt 0:00:10]} b6 {[%emt 0:00:45]} 5. e4 {[%emt 0:00:56]} c5 {[%emt 0:00:21]} 6. d5 {[%emt 0:00:07]} exd5 {[%emt 0:00:46]} 7. exd5 {[%emt 0:00:12]} Qe7+ {[%emt 0:04:13]} 8. Be2 {[%emt 0:00:11]} Qe4 {[%emt 0:01:40]} 9. Qd2 {[%emt 0:03:14]} Qxg2 {[%emt 0:16:45]} 10. Bf3 {[%emt 0:00:48]} Qg6 {[%emt 0:00:15]} 11. a3 {[%emt 0:24:02]} Bxc3 {[%emt 0:05:42]} 12. Qxc3 {[%emt 0:00:14]} O-O {[%emt 0:02:32]} 13. Ne2 {[%emt 0:04:43]} Re8 {[%emt 0:00:29]} 14. Be3 {[%emt 0:05:57]} Qf5 {[%emt 0:01:03]} 15. Rg1 {[%emt 0:02:43]} d6 {[%emt 0:08:11]} 16. O-O-O {[%emt 0:07:12]} g6 {[%emt 0:09:12]} 17. Bh1 {[%emt 0:13:26]} Ng4 {[%emt 0:12:43]} 18. Rxg4 {[%emt 0:07:34]} Qxg4 {[%emt 0:05:07]} 19. Bh6 {[%emt 0:00:06]} Re5 {[%emt 0:00:08]} 20. f4 {[%emt 0:00:06]} Qh4 {[%emt 0:00:30]} 21. fxe5 {[%emt 0:04:56]} Qxh6+ {[%emt 0:00:31]} 22. Rd2 {[%emt 0:00:04]} Bg4 {[%emt 0:06:11]} 23. Ng3 {[%emt 0:02:28]} Nd7 {[%emt 0:01:56]} 24. exd6 {[%emt 0:00:46]} Re8 {[%emt 0:02:16]} 25. Kb1 {[%emt 0:02:17]} Qf4 {[%emt 0:02:56]} 26. Ka2 {[%emt 0:02:32]} Re3 {[%emt 0:01:06]} 27. Qc2 {[%emt 0:00:32]} Qxd6 {[%emt 0:00:33]} 0-1

[Event "6th Heraklion Fischer 2019"]
[Site "Heraklion"]
[Date "2019.05.05"]
[Round "7.2"]
[White "Mitsis, Georgios"]
[Black "Krishnater Kushager"]
[Result "1/2-1/2"]
[ECO "E83"]
[WhiteElo "2362"]
[BlackElo "2329"]
[Annotator "ChessBase"]
[PlyCount "46"]
[EventDate "2019.04.29"]
[EventType "tourn"]
[EventCountry "GRE"]
[SourceTitle "playchess.com"]
[Source "ChessBase"]
[SourceQuality "1"]
[TimeControl "40/5400+30:1800+30"]

1. d4 {[%emt 0:00:00]} Nf6 {[%emt 0:00:00]} 2. c4 {[%emt 0:00:00]} g6 {[%emt 0:00:00]} 3. Nc3 {[%emt 0:00:00]} Bg7 {[%emt 0:00:00]} 4. e4 {[%emt 0:00:00]} d6 {[%emt 0:00:00]} 5. f3 {[%emt 0:00:16]} O-O {[%emt 0:00:20]} 6. Be3 {[%emt 0:00:11]} Nc6 {[%emt 0:00:27]} 7. Nge2 {[%emt 0:02:06]} a6 {[%emt 0:00:08]} 8. Qd2 {[%emt 0:00:13]} Bd7 {[%emt 0:00:06]} 9. Rc1 {[%emt 0:05:24]} b5 {[%emt 0:01:07]} 10. cxb5 {[%emt 0:30:42]} axb5 {[%emt 0:01:36]} 11. Nxb5 {[%emt 0:00:22]} Rxa2 {[%emt 0:01:12]} 12. Nec3 {[%emt 0:01:25]} Ra8 {[%emt 0:00:59]} 13. Rb1 {[%emt 0:03:53]} e5 {[%emt 0:15:46]} 14. d5 {[%emt 0:00:55]} Ne7 {[%emt 0:01:26]} 15. Be2 {[%emt 0:00:54]} Nh5 {[%emt 0:00:30]} 16. O-O {[%emt 0:01:13]} Nf4 {[%emt 0:00:42]} 17. Rfc1 {[%emt 0:04:36]} Nxe2+ {[%emt 0:01:38]} 18. Qxe2 {[%emt 0:00:06]} Qb8 {[%emt 0:01:10]} 19. Qc4 {[%emt 0:07:05]} Rc8 {[%emt 0:07:16]} 20. Ra1 {[%emt 0:14:44]} c6 {[%emt 0:11:48]} 21. dxc6 {[%emt 0:02:08]} Rxc6 {[%emt 0:00:36]} 22. Ra3 {[%emt 0:01:37]} Ra7 23. Rxa7 {[%emt 0:00:30]} Qa8 {[%emt 0:00:37]} 1/2-1/2

[Event "6th Heraklion Fischer 2019"]
[Site "Heraklion"]
[Date "2019.05.05"]
[Round "7.4"]
[White "Gungl, Theo"]
[Black "Tate, Alan"]
[Result "1-0"]
[ECO "D16"]
[WhiteElo "2329"]
[BlackElo "2308"]
[Annotator "RC"]
[PlyCount "85"]
[EventDate "2019.04.29"]
[EventType "tourn"]
[EventCountry "GRE"]
[SourceTitle "playchess.com"]
[Source "ChessBase"]
[SourceQuality "1"]
[TimeControl "40/5400+30:1800+30"]

1. d4 {[%emt 0:00:00]} d5 {[%emt 0:00:00]} 2. c4 {[%emt 0:00:30]} c6 {[%emt 0:01:53]} 3. Nc3 {[%emt 0:00:00]} Nf6 {[%emt 0:00:40]} 4. Nf3 {[%emt 0:00:00]} dxc4 {[%emt 0:00:38]} 5. a4 {[%emt 0:00:00]} e6 {[%emt 0:00:16]} 6. e3 {[%emt 0:00:00]} c5 {[%emt 0:00:10]} 7. Bxc4 {[%emt 0:00:00]} Nc6 {[%emt 0:00:06]} 8. O-O {[%emt 0:00:20]} cxd4 {[%emt 0:00:16]} 9. Nxd4 {[%emt 0:00:32]} Nxd4 {[%emt 0:01:51]} 10. exd4 {[%emt 0:01:53]} Be7 {[%emt 0:07:41]} 11. d5 {[%emt 0:10:10]} exd5 {[%emt 0:03:38]} 12. Nxd5 {[%emt 0:00:07]} Nxd5 {[%emt 0:00:33]} 13. Bxd5 {[%emt 0:00:27]} O-O {[%emt 0:03:44]} 14. Qf3 {[%emt 0:08:58]} Qa5 {[%emt 0:16:43]} 15. Rd1 {[%emt 0:28:34]} Bf6 {[%emt 0:08:56]} 16. Bd2 {[%emt 0:01:15]} Qa6 {[%emt 0:00:20]} 17. Bb4 {[%emt 0:20:56]} Re8 {[%emt 0:02:20]} 18. Re1 {[%emt 0:01:35]} Rxe1+ {[%emt 0:03:13]} 19. Rxe1 {[%emt 0:00:02]} Be6 {[%emt 0:00:30]} 20. Bxb7 {[%emt 0:02:49]} Qxa4 {[%emt 0:00:03]} 21. Bxa8 {[%emt 0:00:36]} Qxb4 {[%emt 0:00:03]} 22. Qe4 {[%emt 0:04:39]} Qxe4 {[%emt 0:08:37]} 23. Rxe4 {[%emt 0:00:11]} Bxb2 {[%emt 0:01:23]} 24. Ra4 {[%emt 0:01:04]} h5 {[%emt 0:03:51]} 25. Rxa7 {[%emt 0:00:10]} g6 {[%emt 0:00:37]} 26. Ra5 {[%emt 0:02:02]} Kg7 {[%emt 0:01:40]} 27. Bd5 {[%emt 0:00:26]} Bxd5 {[%emt 0:01:21]} 28. Rxd5 {[%emt 0:00:02]} f5 {[%emt 0:00:43]} 29. Kf1 {[%emt 0:01:24]} Kf6 {[%emt 0:06:32]} 30. Rd6+ {[%emt 0:01:13]} Kg5 {[%emt 0:00:27]} 31. Ra6 {[%emt 0:00:15]} Be5 {[%emt 0:02:08]} 32. h3 {[%emt 0:00:50]} h4 {[%emt 0:03:19]} 33. Ke2 {[%emt 0:00:48]} Bh2 {[%emt 0:01:49]} 34. Ke3 {[%emt 0:04:09]} Bf4+ {[%emt 0:02:08]} 35. Kd4 {[%emt 0:00:23]} Bh2 {[%emt 0:00:13]} 36. Kd5 {[%emt 0:03:30]} Bg1 {[%emt 0:00:02]} 37. Ra2 {[%emt 0:01:19]} Kf6 {[%emt 0:01:07]} 38. f4 {[%emt 0:03:27]} Be3 {[%emt 0:06:47]} 39. Ra6+ {[%emt 0:00:04]} Kg7 {[%emt 0:03:03]} 40. Ke5 {[%emt 0:00:00]} Kh6 {[%emt 0:00:00]} 41. Kf6 {[%emt 0:03:40]} Bxf4 {[%emt 0:07:30]} 42. Kf7 {[%emt 0:00:06]} Kh5 {[%emt 0:02:11]} 43. Rxg6 {[%emt 0:00:03]} 1-0

[Event "6th Heraklion Fischer 2019"]
[Site "Heraklion"]
[Date "2019.05.06"]
[Round "8.5"]
[White "Moksh Amit Doshi"]
[Black "Mitsis, Georgios"]
[Result "1-0"]
[ECO "E49"]
[WhiteElo "2256"]
[BlackElo "2362"]
[Annotator "RC"]
[PlyCount "71"]
[EventDate "2019.04.29"]
[EventType "tourn"]
[EventCountry "GRE"]
[SourceTitle "playchess.com"]
[Source "ChessBase"]
[SourceQuality "1"]
[TimeControl "40/5400+30:1800+30"]

1. d4 {[%emt 0:00:28]} Nf6 {[%emt 0:00:00]} 2. c4 {[%emt 0:00:09]} e6 {[%emt 0:00:00]} 3. Nc3 {[%emt 0:00:04]} Bb4 {[%emt 0:00:00]} 4. e3 {[%emt 0:00:04]} O-O {[%emt 0:00:03]} 5. Bd3 {[%emt 0:00:04]} d5 {[%emt 0:00:13]} 6. a3 {[%emt 0:00:07]} Bxc3+ {[%emt 0:00:46]} 7. bxc3 {[%emt 0:00:07]} dxc4 {[%emt 0:01:13]} 8. Bxc4 {[%emt 0:00:06]} c5 {[%emt 0:00:35]} 9. Ne2 {[%emt 0:00:06]} Qc7 {[%emt 0:05:44]} 10. Ba2 {[%emt 0:00:08]} Nc6 {[%emt 0:01:26]} 11. O-O {[%emt 0:00:13]} b6 {[%emt 0:00:27]} 12. Bb2 {[%emt 0:00:36]} Ba6 {[%emt 0:01:32]} 13. Rc1 {[%emt 0:00:05]} Rfd8 {[%emt 0:00:57]} 14. c4 {[%emt 0:00:07]} cxd4 {[%emt 0:06:50]} 15. exd4 {[%emt 0:00:06]} Na5 {[%emt 0:00:30]} 16. d5 {[%emt 0:10:53]} Bxc4 {[%emt 0:17:53]} 17. Bxf6 {[%emt 0:12:47]} gxf6 {[%emt 0:00:24]} 18. Ng3 {[%emt 0:04:55]} Rxd5 {[%emt 0:12:08]} 19. Qg4+ {[%emt 0:07:46]} Rg5 {[%emt 0:00:06]} 20. Qh4 {[%emt 0:04:04]} b5 {[%emt 0:05:08]} 21. Bb1 {[%emt 0:01:54]} Kf8 {[%emt 0:06:28]} 22. f4 {[%emt 0:13:40]} Qb6+ {[%emt 0:06:15]} 23. Rf2 {[%emt 0:00:09]} Rd5 {[%emt 0:03:39]} 24. Ne4 {[%emt 0:02:10]} Qe3 {[%emt 0:01:49]} 25. Qh6+ {[%emt 0:02:06]} Ke7 {[%emt 0:00:13]} 26. Qxf6+ {[%emt 0:00:11]} Kf8 {[%emt 0:03:25]} 27. Qh8+ {[%emt 0:00:07]} Ke7 {[%emt 0:00:05]} 28. Qf6+ {[%emt 0:00:05]} Ke8 {[%emt 0:13:00]} 29. Qb2 {[%emt 0:05:02]} Rd4 {[%emt 0:00:21]} 30. Nf6+ {[%emt 0:00:36]} Ke7 {[%emt 0:00:33]} 31. Ng4 {[%emt 0:00:08]} Qxc1+ {[%emt 0:01:01]} 32. Qxc1 {[%emt 0:00:09]} Rad8 {[%emt 0:00:03]} 33. Ne3 {[%emt 0:00:43]} Nb3 {[%emt 0:00:05]} 34. Qe1 {[%emt 0:00:13]} Ke8 {[%emt 0:01:07]} 35. h3 {[%emt 0:00:49]} Nc5 {[%emt 0:00:42]} 36. Kh2 {[%emt 0:00:35]} 1-0